Cogmind - Beta 17 @@@ ROGUE MODE // 2026.07.18 @ 20:12:52 Player: IsAway Result: Destroyed by G-47 Trooper with Particle Gun Performance ------------- Evolutions (2) 1000 Regions Visited (7) 1400 Robots Destroyed (77) 385 Value Destroyed (2047) 2047 Prototype IDs (26) 520 Alien Tech Used (0) 0 Bonus (432) 432 TOTAL SCORE: 5784 Bonus ------- High Alert Combat Kills 51 Follower Combat Kills 81 Aligned with FarCom 300 Cogmind --------- Core Integrity 0/550 Matter 227/300 Energy 81/100 System Corruption 0% Temperature Hot (261) Movement Core (50) Location -8/Materials Parts ------- > --- POWER (1) -------- (None) > --- PROPULSION (4) --- (None) > --- UTILITY (3) ------ (None) > --- WEAPON (3) ------- (None) > --- INVENTORY (5) ---- VSS Leg High-capacity Storage Unit Dynamic Insulation System Sensor Drone Bay (19/20) Heavy Flail Peak State ------------ > --- POWER ------------ Light Nuclear Core > --- PROPULSION ------- VSS Leg VSS Leg VSS Leg VSS Leg > --- UTILITY ---------- Large Storage Unit Weight Redist. System Salvage Targeting Computer > --- WEAPON ----------- Particle Gun YOLO Cannon > --- INVENTORY -------- Light Nuclear Core VSS Leg VSS Leg VSS Leg High-capacity Storage Unit High-capacity Matter Pod Dynamic Insulation System Sensor Drone Bay Shock Rifle Particle Gun Particle Gun Shock Bomb Launcher Heavy Flail [Rating: 45] Favorites ----------- Power Light Ion Engine Engine Light Ion Engine Power Core Light Nuclear Core Propulsion Hover Unit Treads Light Treads Leg Aluminum Leg Wheel Wheel Hover Unit Hover Unit Utility Large Storage Unit Device Cooling System Storage Large Storage Unit Processor Salvage Targeting Computer Hackware Hacking Suite Weapon Beam Rifle Energy Gun Beam Rifle Energy Cannon YOLO Cannon Ballistic Gun Light Assault Rifle Launcher Shock Bomb Launcher Impact Weapon Heavy Flail Build | -11 -10 -10 -9 -9 -9 -8 -8 ------- Run | Yrd Mat Min Mat Min Exi Min Mat Slots Evolved 4 | . . . 2 . . . 2 Power . | . . . . . . . . Propulsion 2 | . . . 2 . . . . Utility 1 | . . . . . . . 1 Weapon 1 | . . . . . . . 1 Parts Attached 79 | 9 1 4 27 4 . 3 31 Power 10 | 1 . 1 4 1 . . 3 Engine 6 | 1 . . 4 1 . . . Core 4 | . . 1 . . . . 3 Reactor . | . . . . . . . . Propulsion 32 | 4 . . 13 . . 3 12 Treads 2 | 2 . . . . . . . Leg 16 | . . . 6 . . . 10 Wheel 7 | 2 . . 3 . . . 2 Hover 7 | . . . 4 . . 3 . Flight . | . . . . . . . . Utility 11 | 2 1 1 4 1 . . 2 Device 6 | 1 . 1 2 . . . 2 Storage 3 | 1 1 . 1 . . . . Processor 1 | . . . . 1 . . . Hackware 1 | . . . 1 . . . . Protection . | . . . . . . . . Artifact . | . . . . . . . . Weapon 26 | 2 . 2 6 2 . . 14 Energy Gun 14 | . . 1 5 1 . . 7 Energy Cannon 1 | . . . . . . . 1 Ballistic Gun 6 | 2 . 1 . 1 . . 2 Ballistic Cannon . | . . . . . . . . Launcher 2 | . . . 1 . . . 1 Special Weapon . | . . . . . . . . Impact Weapon 3 | . . . . . . . 3 Slashing Weapon . | . . . . . . . . Piercing Weapon . | . . . . . . . . Special Melee Weapon . | . . . . . . . . Unidentified Prototypes 1 | . . 1 . . . . . Parts Lost 40 | . . 4 11 . . 3 22 Power 6 | . . . 2 . . . 4 Propulsion 21 | . . 2 5 . . 3 11 Utility . | . . . . . . . . Weapon 13 | . . 2 4 . . . 7 Highest Loss Streak 12 | . . 3 5 . . 3 12 To Critical Strikes 2 | . . . 2 . . . . Average Backups 10 | 3 6 9 12 9 10 11 11 Power 2 | . 2 3 3 1 1 2 2 Propulsion 1 | 1 2 . . 3 3 2 . Utility 4 | . 1 2 6 3 4 5 4 Weapon 2 | . 1 2 2 1 1 2 3 Tool/Special . | . . . . . . . . Unused Backups 15 | . . . 5 3 . . 7 Power 3 | . . . 2 . . . 1 Propulsion 4 | . . . 1 . . . 3 Utility 4 | . . . 1 . . . 3 Weapon 4 | . . . 1 3 . . . Tool/Special . | . . . . . . . . Average Slot Usage (%) 89 | . 100 99 89 99 100 95 69 Engine 7 | . 14 1 7 10 11 11 5 Core 2 | . . 12 1 . . . 2 Treads 2 | . 28 6 . . . . . Leg 7 | . . . 24 . . . 8 Wheel 5 | . . 21 8 . . . 3 Hover 19 | . . . 2 44 44 39 12 Device 5 | . 14 14 10 . . . 2 Storage 11 | . 14 14 11 11 11 11 9 Processor 6 | . . . . 10 11 11 9 Energy Gun 15 | . . 11 20 19 22 22 10 Ballistic Gun 4 | . 28 16 . 1 . . 1 Peak Build Rating 45 | 7 7 18 22 16 18 20 45 Average Rating 16 | 5 7 15 14 14 17 17 19 On Entrance 12 | . 7 7 18 14 16 18 20 Avg Prop Armor Cover (%) 9 | . . . 13 10 11 5 6 Naked Turns 2 | . . . . . . . 2 Heaviest Build 45 | 14 29 43 45 20 30 34 44 Greatest Support 46 | 40 40 40 46 24 12 24 46 Greatest Overweight (x) 10 | . . 2 5 1 2 2 10 Average Overweight (x) . | . . 1 . . 1 1 1 Largest Inventory Capacity 15 | 8 15 15 15 10 15 15 15 Average Capacity 13 | 7 13 15 14 10 13 15 14 Most Carried 15 | 5 8 10 15 10 13 13 15 Average Carried 10 | 3 7 9 12 9 11 12 12 Final Capacity 15 | 8 15 15 10 10 15 15 5 Final Carried 13 | 5 8 10 10 9 13 12 5 Class Distribution -------------------- 78% | Mutant 14% | Scavenger-Mutant 3% | Scavenger-Skirmisher Dominant Class ---------------- Mutant | -10/Materials Mutant | -10/Mines Scavenger-Mutant | -9/Materials Mutant | -9/Mines Mutant | -9/Exiles Mutant | -8/Mines Mutant | -8/Materials Resources | -11 -10 -10 -9 -9 -9 -8 -8 ----------- Run | Yrd Mat Min Mat Min Exi Min Mat Matter Collected 1255 | 257 110 160 254 75 20 113 266 Remotely . | . . . . . . . . Salvage Created 2591 | 76 161 264 735 89 . 191 1075 Parts 133 | 6 6 9 47 2 . 6 57 Haulers Intercepted 2 | . . . 1 . . . 1 Recyclers Shooed 3 | . . . 3 . . . . Parts Field Recycled . | . . . . . . . . Retrieved Matter . | . . . . . . . . Parts Self-Destructed . | . . . . . . . . Prevented . | . . . . . . . . Parts Restored . | . . . . . . . . Kills | -11 -10 -10 -9 -9 -9 -8 -8 ------- Run | Yrd Mat Min Mat Min Exi Min Mat Combat Hostiles Destroyed 59 | . 4 4 16 2 . 4 29 Guns 49 | . 4 4 15 2 . 4 20 Cannons 2 | . . . . . . . 2 AOE 8 | . . . 1 . . . 7 Classes Destroyed 13 | 2 3 . 5 . . . 3 Worker 2 | . . . 1 . . . 1 Tunneler 1 | 1 . . . . . . . Hauler 2 | . . . 1 . . . 1 Recycler 5 | 1 . 1 2 . . . 1 Operator 3 | . . . 1 . . . 2 Watcher 5 | . 2 . 2 . . . 1 Swarmer 23 | . 2 . 6 . . 1 14 Grunt 24 | . 2 4 6 1 . 3 8 Brawler 2 | . . . . . . . 2 Duelist 3 | . . . 1 1 . . 1 Sentry 5 | . . . 3 . . . 2 Specialist 1 | . . . . . . . 1 Heavy 1 | . . . . . . . 1 Best Kill Streak 14 | 2 3 3 6 2 . 2 14 Combat Bots Only 13 | . 2 2 5 2 . 2 13 Max Kills in Single Turn 3 | 1 1 1 3 1 . 1 3 Gunslinging 1 | . . . 1 . . . 1 Exploded 2 | . . . 1 . . . 2 Melee . | . . . . . . . . Uniques/NPCs Destroyed . | . . . . . . . . Combat | -11 -10 -10 -9 -9 -9 -8 -8 -------- Run | Yrd Mat Min Mat Min Exi Min Mat Hostile Shots Fired 486 | . 40 41 123 19 . 17 246 Missed 129 | . 11 7 34 3 . 8 66 Hits 357 | . 29 34 89 16 . 9 180 Melee 7 | . . . 1 3 . . 3 Projectile 350 | . 29 34 88 13 . 9 177 AOE 1 | . 1 . . . . . . Critical Strikes 12 | . . . 2 2 . . 8 Damage Taken 5102 | . 423 449 1061 246 . 140 2783 Core 977 | . 103 76 166 61 . 19 552 Absorbed by Shields . | . . . . . . . . Core Remaining (%) 55 | 100 . 28 . . . 38 . Volleys Fired 219 | 11 22 23 67 10 . 12 74 Largest 3 | 2 2 2 2 2 . 2 3 Hottest 195 | 40 40 85 121 121 . 125 195 Shots Fired 394 | 22 44 44 118 19 . 23 124 Gun 388 | 22 44 44 117 19 . 23 119 Cannon 5 | . . . . . . . 5 Launcher 1 | . . . 1 . . . . Special . | . . . . . . . . Kinetic 142 | 22 44 33 8 6 . . 29 Thermal 251 | . . 11 109 13 . 23 95 Explosive 1 | . . . 1 . . . . Electromagnetic . | . . . . . . . . Robot Hit Streak 21 | 3 8 5 21 8 . 7 11 Robot Miss Streak 7 | 3 7 4 5 2 . 1 5 Penetration Max . | . . . . . . . . Secondary Targets 12 | . 3 1 4 . . . 4 Max Gunslinging Chain 1 | . 1 1 1 . . . 1 Shots Hit Robots 246 | 10 21 26 84 14 . 18 73 Core Hits 122 | 4 9 12 34 5 . 9 49 Critical Kills . | . . . . . . . . Critical Parts Destroyed . | . . . . . . . . Critical Strikes 8 | . . . 3 1 . 1 3 Burn 8 | . . . 3 1 . 1 3 Melee Attacks 4 | . . . . . . . 4 Impact 4 | . . . . . . . 4 Slashing . | . . . . . . . . Piercing . | . . . . . . . . Sneak Attacks 1 | . . . . . . . 1 Combat Hostiles . | . . . . . . . . Follow-up Attacks . | . . . . . . . . Damage Inflicted 5375 | 116 214 289 1519 212 . 310 2715 Guns 3514 | 116 214 289 1188 212 . 305 1190 Cannons 306 | . . . . . . . 306 Explosions 1446 | . . . 331 . . . 1115 Melee 104 | . . . . . . . 104 Ramming 5 | . . . . . . 5 . Kinetic 833 | 116 214 197 58 76 . . 172 Thermal 4102 | . . 92 1130 136 . 305 2439 Explosive 331 | . . . 331 . . . . Electromagnetic . | . . . . . . . . Impact 104 | . . . . . . . 104 Slashing . | . . . . . . . . Piercing . | . . . . . . . . Highest Corruption . | . . . . . . . . Average Corruption . | . . . . . . . . Corruption Purged . | . . . . . . . . Corruption Blocked . | . . . . . . . . Overload Shots . | . . . . . . . . Overflow Damage 208 | . . . 41 . . . 167 Projectiles 85 | . . . . . . . 85 Explosions 84 | . . . 41 . . . 43 Melee 39 | . . . . . . . 39 Knockbacks 1 | . . . . . . . 1 Impact 1 | . . . . . . . 1 Kinetic . | . . . . . . . . Secondary . | . . . . . . . . Self-Inflicted Damage 170 | . . . . . . 2 168 Shots 3 | . . . . . . . 3 Rammed 3 | . . . . . . 1 2 Targets Rammed 3 | . . . . . . 1 2 Kicked . | . . . . . . . . Crushed . | . . . . . . . . Highest Temperature 559 | . 18 380 312 354 . 559 375 Average Temperature 168 | . 10 178 95 207 . 247 168 Received Heat Transfer 1737 | . 30 258 417 78 . 72 882 Effects 19 | . . 1 1 4 . 7 6 Shutdowns 2 | . . 1 . . . 1 . Energy Bleed 3 | . . . . . . 1 2 Interference 9 | . . . 1 3 . 3 2 Matter Decay 1 | . . . . . . 1 . Short Circuit 2 | . . . . . . 1 1 Damage (minor) 2 | . . . . 1 . . 1 Siege Activations . | . . . . . . . . Martial Activations . | . . . . . . . . Shielding Activations . | . . . . . . . . Robots Disrupted . | . . . . . . . . Combat Hostiles . | . . . . . . . . Robots Corrupted 1 | . . . . . . . 1 Combat Hostiles . | . . . . . . . . Parts Fried . | . . . . . . . . Impact Corruptions 2 | . . . . . . . 2 Robots Melted . | . . . . . . . . Combat Hostiles . | . . . . . . . . Parts Melted 16 | . . . 7 1 . 1 7 Heat Transferred 8325 | . . 222 2954 407 . 740 4002 Parts Sabotaged . | . . . . . . . . Parts Stolen . | . . . . . . . . Parts Stripped . | . . . . . . . . Power Chain Reactions . | . . . . . . . . Alert | -11 -10 -10 -9 -9 -9 -8 -8 ------- Run | Yrd Mat Min Mat Min Exi Min Mat Maximum Alert Level 2 | . . . . . . . 2 Low Security (%) 90 | 100 100 100 100 100 . 100 69 Level 1 7 | . . . . . . . 26 Level 2 1 | . . . . . . . 4 Level 3 . | . . . . . . . . Level 4 . | . . . . . . . . Level 5 . | . . . . . . . . High Security . | . . . . . . . . Max Security . | . . . . . . . . Peak Influence 532 | 10 84 51 186 97 . 85 532 Initial 40 | . . 21 . 40 . . 13 Average 74 | 1 37 10 96 26 . 25 148 Influence Increases 2058 | 10 114 105 511 127 . 165 1026 Destroy 0b10 Robot/C 1280 | . 80 80 320 80 . 140 580 Destroy 0b10 Robot/NC 90 | 10 10 5 35 . . . 30 Destroy Leader 284 | . 24 20 86 20 . 20 114 Allied During Kill 17 | . . . . 12 . 5 . Successful Hack 26 | . . . 24 . . . 2 Disable Machine 120 | . . . 30 15 . . 75 Destroy Structure 91 | . . . 16 . . . 75 Lose Combat Pursuer 150 | . . . . . . . 150 Influence Decreases 1642 | 10 60 159 405 233 . 130 645 Entered New Map 121 | . . 33 . 66 . . 22 Time Decay 1091 | 10 60 86 295 157 . 80 403 Lost Part 400 | . . 40 110 . . 30 220 Lost Ally 30 | . . . . 10 . 20 . Squads Dispatched 11 | . 2 . 1 . . . 8 Investigation 2 | . 1 . . . . . 1 Extermination . | . . . . . . . . Reinforcement 6 | . 1 . 1 . . . 4 Assault . | . . . . . . . . Garrison 3 | . . . . . . . 3 Intercept . | . . . . . . . . Searches Triggered . | . . . . . . . . Construction Impeded . | . . . . . . . . Haulers Reinforced . | . . . . . . . . Active Scanning Responses . | . . . . . . . . Cargo Convoy Interrupts . | . . . . . . . . Stealth | -11 -10 -10 -9 -9 -9 -8 -8 --------- Run | Yrd Mat Min Mat Min Exi Min Mat Distress Signals 5 | . . . 3 . . . 2 Communications Jammed . | . . . . . . . . Distress Signals . | . . . . . . . . Times Spotted 100 | . 8 4 26 4 . 7 51 Peak Tracking Total 7 | . 4 2 7 2 . 4 7 Tactical Retreats 3 | . . . . . . . 3 Traps | -11 -10 -10 -9 -9 -9 -8 -8 ------- Run | Yrd Mat Min Mat Min Exi Min Mat Traps Triggered 2 | . 1 . . . . . 1 Indirectly . | . . . . . . . . Trap Hack Attempts . | . . . . . . . . Triggered . | . . . . . . . . Disarmed . | . . . . . . . . Reprogrammed . | . . . . . . . . Reused . | . . . . . . . . Traps Extracted . | . . . . . . . . Installed . | . . . . . . . . Triggered . | . . . . . . . . Machines | -11 -10 -10 -9 -9 -9 -8 -8 ---------- Run | Yrd Mat Min Mat Min Exi Min Mat Machines Disabled 8 | . . . 2 1 . . 5 Max in Single Turn 2 | . . . 2 1 . . 2 Machines Repaired . | . . . . . . . . Machines Dismantled . | . . . . . . . . Machines Sabotaged . | . . . . . . . . Overloaded Fab Kills . | . . . . . . . . Hacking | -11 -10 -10 -9 -9 -9 -8 -8 --------- Run | Yrd Mat Min Mat Min Exi Min Mat Machines Accessed 10 | . 2 1 2 1 1 . 3 Terminals 3 | . 2 . 1 . . . . Fabricators . | . . . . . . . . Repair Stations 1 | . . . . . . . 1 Recycling Units 1 | . . . . . . . 1 Scanalyzers 2 | . . . 1 . . . 1 Garrison Access . | . . . . . . . . Total Hacks 16 | . 5 1 4 1 1 . 4 Successful 11 | . 2 1 3 1 1 . 3 Failed 5 | . 3 . 1 . . . 1 Catastrophic . | . . . . . . . . Database Lockouts . | . . . . . . . . Manual 4 | . 3 . . . 1 . . Terminals 7 | . 5 . 2 . . . . Fabricators . | . . . . . . . . Repair Stations 1 | . . . . . . . 1 Recycling Units 1 | . . . . . . . 1 Scanalyzers 4 | . . . 2 . . . 2 Garrison Access . | . . . . . . . . Terminal Hacks 7 | . 2 1 2 1 1 . . Prototype ID Bank 1 | . 1 . . . . . . Open Door 2 | . . 1 . 1 . . . Registered Components 1 | . . . 1 . . . . Zone Layout 2 | . 1 . 1 . . . . Proto ID Catalog 1 | . . . . . 1 . . Fabricator Hacks . | . . . . . . . . Repair Station Hacks . | . . . . . . . . Recycling Unit Hacks 1 | . . . . . . . 1 Retrieve Components 1 | . . . . . . . 1 Scanalyzer 3 | . . . 1 . . . 2 Retrieve Study 3 | . . . 1 . . . 2 Garrison Access Hacks . | . . . . . . . . Unauthorized Hacks . | . . . . . . . . Terminals . | . . . . . . . . Fabricators . | . . . . . . . . Repair Stations . | . . . . . . . . Recycling Units . | . . . . . . . . Scanalyzers . | . . . . . . . . Garrison Access . | . . . . . . . . Data Cores Recovered 1 | . . . . . . . 1 Used . | . . . . . . . . Hacking Detections 6 | . 2 . 1 . . . 3 Full Trace Events . | . . . . . . . . Feedback Events . | . . . . . . . . Feedback Blocked . | . . . . . . . . Robot Schematics Acquired . | . . . . . . . . Robots Built . | . . . . . . . . Authchips . | . . . . . . . . Time . | . . . . . . . . Total Robot Build Rating . | . . . . . . . . Part Schematics Acquired . | . . . . . . . . Parts Built . | . . . . . . . . Authchips . | . . . . . . . . Time . | . . . . . . . . Total Part Build Rating . | . . . . . . . . Part Studies Acquired 3 | . . . 1 . . . 2 Parts Repaired . | . . . . . . . . Time . | . . . . . . . . Parts Recycled . | . . . . . . . . Recycled Matter . | . . . . . . . . Retrieved Matter . | . . . . . . . . Retrieved Components 6 | . . . . . . . 6 Parts Scanalyzed . | . . . . . . . . Part Schematics Acquired . | . . . . . . . . Parts Damaged . | . . . . . . . . Bothacking | -11 -10 -10 -9 -9 -9 -8 -8 ------------ Run | Yrd Mat Min Mat Min Exi Min Mat Used RIF Installer . | . . . . . . . . Robots Hacked . | . . . . . . . . Non-combat . | . . . . . . . . Combat . | . . . . . . . . Robot Hacks Applied . | . . . . . . . . Relay Couplers Released . | . . . . . . . . Fabnet Peak Effective % . | . . . . . . . . Robots Rewired . | . . . . . . . . Allies Hacked . | . . . . . . . . Hacks Repelled . | . . . . . . . . Allies | -11 -10 -10 -9 -9 -9 -8 -8 -------- Run | Yrd Mat Min Mat Min Exi Min Mat Total Allies 3 | . . . . 3 . . . Largest Group 3 | . . . . 3 2 2 . Highest-Rated Group 40 | . . . . 40 32 32 . Highest-Rated Ally 16 | . . . . 16 16 16 . Total Orders 7 | . . 3 2 1 . 1 . ROAM 1 | . . 1 . . . . . GUARD 1 | . . . . . . 1 . AID 1 | . . . . 1 . . . EXPLORE 2 | . . 1 1 . . . . RETURN 2 | . . 1 1 . . . . Ally Attacks 39 | . . . . 25 . 14 . Total Damage 297 | . . . . 208 . 89 . Kills 5 | . . . . 2 . 3 . Allies Corrupted . | . . . . . . . . Allies Melted . | . . . . . . . . Intel | -11 -10 -10 -9 -9 -9 -8 -8 ------- Run | Yrd Mat Min Mat Min Exi Min Mat Active Infowar (turns) 356 | 30 189 137 . . . . . Seismic 356 | 30 189 137 . . . . . Robot Analysis Total . | . . . . . . . . Derelict Logs Recovered 2 | . . 1 . 1 . . . Drone Launches 22 | . . 22 . . . . . Drone Recoveries 21 | . . 21 . . . . . Exploration | -11 -10 -10 -9 -9 -9 -8 -8 ------------- Run | Yrd Mat Min Mat Min Exi Min Mat Turns Passed 3732 | 118 189 483 680 535 399 334 994 Spaces Moved 1837 | 51 77 138 314 452 263 126 416 Core 17 | 1 . . . . . . 16 Treads 145 | 38 77 30 . . . . . Legs 240 | . . . 143 . . . 97 Wheels 348 | 12 . 108 143 . . . 85 Hover 1087 | . . . 28 452 263 126 218 Flight . | . . . . . . . . Fastest Speed 48 | 50 160 95 48 48 116 108 50 Average Speed 121 | 139 160 119 115 93 149 112 132 Slowest Speed 550 | 160 160 160 360 116 176 176 550 Overloaded Moves . | . . . . . . . . Propulsion Burnouts . | . . . . . . . . Robots Hopped . | . . . . . . . . Potential Cave-ins . | . . . . . . . . Cave-ins Triggered . | . . . . . . . . Exploration Rate (%) 40 | 3 22 44 35 79 68 32 38 Regions Visited 7 Branch Regions 4 Pre-discovered Areas . | . . . . . . . . Known Exits Taken 1 | . . 1 . . . . . Unknown Exits Taken 6 | 1 1 . 1 1 1 1 . Scrap Searched 1 | . . . . 1 . . . Spaces Dug 2 | . . . . . . . 2 Terrain Destroyed 82 | . . . 13 . . . 69 Melee 2 | . . . . . . . 2 Projectile 1 | . . . . . . . 1 AOE 79 | . . . 13 . . . 66 Terrain Rammed . | . . . . . . . . Walls Destroyed . | . . . . . . . . Machines Disabled . | . . . . . . . . Actions | -11 -10 -10 -9 -9 -9 -8 -8 --------- Run | Yrd Mat Min Mat Min Exi Min Mat Total 2939 | 75 103 416 514 547 268 293 723 Wait 687 | . 2 245 67 71 . 147 155 Move 1830 | 50 76 137 313 451 262 125 416 Hop . | . . . . . . . . Pick Up 49 | 3 2 4 17 5 4 3 11 Fast Attach 43 | 9 . 1 15 2 . . 16 Attach 32 | . . 4 7 2 . 4 15 Detach 12 | 2 . 1 1 . . . 8 Swap 18 | . 1 1 8 . 1 . 7 Drop 42 | . . . 19 6 1 1 15 Fire 219 | 11 22 23 67 10 . 12 74 Melee 4 | . . . . . . . 4 Ram 3 | . . . . . . 1 2 Kick . | . . . . . . . . Crush . | . . . . . . . . Escape Stasis . | . . . . . . . . Rewire . | . . . . . . . . Trap . | . . . . . . . . Miscellaneous . | . . . . . . . . Route ------- -11/Scrapyard -10/Materials -10/Mines -9/Materials (discovered 2 exits: *Min / Sto) -9/Mines (discovered 2 exits: *Mat / *Exi) -9/Exiles -8/Mines -8/Materials (discovered 1 exit: [*Fac]) History --------- Turn | Location | Event 15 | -11/Scrapyard | Discovered new exit (range 15) 119 | -11/Scrapyard | Entered Materials 295 | -10/Materials | Discovered new exit (range 9) 308 | -10/Materials | Build established: Mutant 308 | -10/Materials | Entered Mines 374 | -10/Mines | Met a Derelict bent on vengeance 388 | -10/Mines | Core integrity fell below 50% 441 | -10/Mines | Found the Drone Emporium 441 | -10/Mines | Lost 3 parts (2n1w) 445 | -10/Mines | Found Prototype Device 445 | -10/Mines | Identified Sensor Drone Bay 630 | -10/Mines | Discovered new exit (range 30) 634 | -10/Mines | Identified exit to Materials 791 | -10/Mines | Entered Materials 791 | -9/Materials | Accompanied by 1 ally 791 | -9/Materials | Evolved 2 slots: Propulsion x2 792 | -9/Materials | Identified exit to Storage 877 | -9/Materials | Lost 3 parts (1n2w) 1073 | -9/Materials | Discovered new exit (range 13) 1138 | -9/Materials | Build established: Scavenger-Mutant 1218 | -9/Materials | Lost 5 parts (1p2n2w) 1471 | -9/Materials | Entered Mines 1473 | -9/Mines | Assisted by bots powering up and referring to "LRC-V3" 1484 | -9/Mines | Found a hidden stash of uninstalled traps 1568 | -9/Mines | Discovered new exit (range 3) 1610 | -9/Mines | Core integrity fell below 50% 1696 | -9/Mines | Met a Derelict who couldn't figure out how to use a Trap Extractor 1739 | -9/Mines | Build established: Mutant 1997 | -9/Mines | Deemed a non-threat by the Exiles lab entrance 1997 | -9/Mines | Discovered new exit (range 5) 2006 | -9/Mines | Entered Exiles 2006 | -9/Exiles | Accompanied by 2 allies 2036 | -9/Exiles | Met 8R-AWN 2055 | -9/Exiles | Met EX-HEX 2090 | -9/Exiles | Met EX-BIN 2104 | -9/Exiles | Aligned with FarCom system 2105 | -9/Exiles | Given EX-Vault access code 2132 | -9/Exiles | Opened EX-Vault 2141 | -9/Exiles | Found YOLO Cannon 2176 | -9/Exiles | Warned to stay clear of 0b10 Research branches 2285 | -9/Exiles | Met EX-DEC 2391 | -9/Exiles | Discovered new exit (range 10) 2405 | -9/Exiles | Left Exiles lab with YOLO Cannon 2405 | -9/Exiles | Entered Mines 2405 | -8/Mines | Accompanied by 2 allies 2657 | -8/Mines | Discovered new exit (range 5) 2727 | -8/Mines | Lost 3 parts (3n) 2739 | -8/Mines | Entered Materials 2739 | -8/Materials | Evolved 2 slots: Utility x1, Weapon x1 3171 | -8/Materials | Lost 3 parts (2n1w) 3277 | -8/Materials | Lost 4 parts (3n1w) 3386 | -8/Materials | Garrison activated, responded to threat 3485 | -8/Materials | Destroyed 13 combat bots 3686 | -8/Materials | Core integrity fell below 50% 3692 | -8/Materials | Discovered new exit (range 9) 3730 | -8/Materials | Core integrity fell below 20% 3731 | -8/Materials | Released all parts (5) 3733 | -8/Materials | Destroyed by G-47 Trooper with Particle Gun Last Messages --------------- R-06 Scavenger collects Shotgun. U-05 Engineer lays Concrete. U-05 Engineer builds a Wall. Lgt. Nuclear Core destroyed. Critical hit (Burn: +37). R-06 Scavenger collects VSS Leg. Particle Gun+ destroyed. R-06 Scavenger collects Hpw. Shotgun. K-01 Serf collects debris. Released VSS Leg. Released Weight Redist. System. Released Salvage Targeting Computer. Released Lrg. Storage Unit. Released Particle Gun+. U-05 Engineer lays Concrete. The unstable cave ceiling collapses. U-05 Engineer lays Concrete. K-01 Serf collects debris. R-06 Scavenger collects Arm. Treads. U-05 Engineer builds a Door. Map ----- +----------------------------------------------------+ | ???# """ # # #??# # # | | ???# """ # %+=*= #??# # """ %# | | ???# + %#% %""" #??# # """ # | | ???# ! # # [""""" #??# # """ # | | ???# "" ## # % """" #??# # !# | | ???# S"" ## #=% """ #??# #"###### | | ???# "" ##=# [/ "" #??# ##"##### | | ???###########%# % #?## ## # | | ????????????## ##+##[#####?# # # | | ??????????? [%*%= ????+ " + """ # | | ??????????####+## #"= ???# # """ # | | ????????????? #=# " ! ?## ## """ # | | ?????????????" # # # ?# ##+##### | | ????????????""" # ###!! [## #???? | | ????????????""" # ##? ] !##### #???? | | ????????????? ? #???######???# #???? | | ??????????????###+##???#######?# #???? | | ???????????????#? ???# """ ### #???? | | ???????????????# ?## % # # ###?? | | ???????????????# "" #; #%==;;#?? | | ???????????????# G" #; / =%% #?? | | ???????????????# "" ; g =![* #?? | | ???????????????# gg g %=!" #?? | | ?????????????#T###;;;; g [!=! #?? | | ?????????? = x [ !#?? | | ???????o?? r < @ ]% ;;;###?? | | ?????????? uk! ![;] ! #? | | ?????????????#### #+;;; ;;;;; #? | | ????????????????# # ; #; #? | | ??????????????????# ##### """ #? | | ??????????????????# " ????# """ #? | | ??????????????????# T ????#/ """ #? | | ??????????????????# " ????########? | | ??????????????????# ????????????? | | ??????????????????#######????????????? | | ?????????????????????????????????????? | | ?????????????????????????????????????? | | ?????????????????????????????????????? | | ?????????????????????????????????????? | | ?????????????????????????????????????? | | ?????????????????????????????????????? | | ?????????????????????????????????????? | | ?????????????????????????????????????? | | ?????????????????????????????????????? | | ?????????????????????????????????????? | | ?????????????????????????????????????? | | ?????????????????????????????????????? | | ?????????????????????????????????????? | | ?????????????????????????????????????? | | ?????????????????????????????????????? | +----------------------------------------------------+ Best States ------------- Heat Dissipation 50 Energy Generation 14 Energy Capacity 265 Matter Stores 300 Matter Capacity 300 Sight Range 16 Terrain Scan Density 10 Additional Mass Support 6 Evasion (%) 57 Recoil Reduction 2 Salvage Targeting 1 Offensive Hacking 10 Item Schematics ----------------- None Robot Schematics ------------------ None Fabricated ------------ Nothing Repaired ---------- Nothing Studied --------- Particle Gun | -9/Materials | Hacked Imp. Hover Unit | -8/Materials | Hacked Hover Unit | -8/Materials | Hacked Alien Tech Used ----------------- None Achievements -------------- None Challenges ------------ None Game ------ Seed HeartEncryptedPrototype Manual? 0 Play Time 01:20:10 Cumulative 50.7 hours Start 2026.07.17 @ 22:44:21 End 2026.07.18 @ 20:12:52 Sessions 3 Manual Loads 0 Difficulty Rogue Special Mode None Game No. 63 Rogue 63 Adventurer 0 Explorer 0 Win Type - Total 0 Types 0/0/0/0/0/0/0/0/0/0 Lore% 42 Gallery% 31 Achievement% 28 Wizard Run 0 Options --------- Layout 1 ASCII 0 Keyboard 0 Movement Mouse Keybinds 0 Fullscreen 2 Font 18/SmallcapsGlow Map View 51x41 Zoom Use 0% Tactical HUD 0 Map Filters NONE Filters NONE Steam 1 RUN: 06eca4a3-6bbe-4e52-9f91-60e088311af3